fUST/lending_fUST_20241029
["ID","MTS","AMOUNT","RATE_DAILY","PERIOD"]
[340940584,1730139049216,-151.0,0.000266,7]
[340940585,1730139049226,-151.0,0.000266,7]
[340940586,1730139049236,-151.0,0.000266,7]
[340940587,1730139049245,-686.387011,0.000266,7]
[340940588,1730139049255,-686.387011,0.000266,7]
[340940589,1730139049264,-1000.0,0.00026642,2]
[340940590,1730139049274,-1000.0,0.00026642,2]
[340940591,1730139049284,-420.0,0.00026699,2]
[340940592,1730139049293,-150.112233,0.000267,12]
[340940593,1730139049303,-1000.0,0.00026842,2]
[340940594,1730139049314,-1000.0,0.00026842,2]
[340940595,1730139049324,-500.0,0.00026849,4]
[340940596,1730139049333,-500.0,0.00026849,4]
[340940597,1730139049342,-500.0,0.00026849,2]
[340940598,1730139049352,-500.0,0.00026849,4]
[340940599,1730139049362,-512.82,0.00026849,4]
[340940600,1730139049371,-500.0,0.00026849,4]
[340940601,1730139049380,-500.0,0.00026849,4]
[340940602,1730139049390,-500.0,0.00026849,4]
[340940603,1730139049400,-500.0,0.00026849,4]
[340940604,1730139049409,-500.0,0.00026849,4]
[340940605,1730139049418,-500.0,0.00026849,4]
[340940606,1730139049428,-500.0,0.00026849,4]
[340940607,1730139049438,-500.0,0.00026849,4]
[340940608,1730139049449,-500.0,0.00026849,4]
[340940609,1730139049459,-500.0,0.00026849,4]
[340940610,1730139049468,-500.0,0.00026849,4]
[340940611,1730139049479,-500.0,0.00026849,4]
[340940612,1730139049493,-500.0,0.00026849,4]
[340940613,1730139049502,-500.0,0.00026849,4]
[340940614,1730139049511,-500.0,0.00026849,4]
[340940615,1730139049522,-642.05748978,0.00026849,4]
[340940616,1730139049531,-500.0,0.00026849,4]
[340940617,1730139049540,-500.0,0.00026849,4]
[340940618,1730139049550,-781.82,0.00026849,4]
[340940619,1730139049560,-500.0,0.00026849,4]
[340940620,1730139049569,-500.0,0.00026849,4]
[340940621,1730139049579,-500.0,0.00026849,4]
[340940622,1730139049589,-500.0,0.00026849,4]
[340940623,1730139049598,-500.0,0.00026849,4]
[340940624,1730139049607,-500.0,0.00026849,4]
[340940625,1730139049617,-265.95541488,0.00026849,4]
[340940626,1730139049628,-500.0,0.00026849,4]
[340940627,1730139049638,-500.0,0.00026849,4]
[340940628,1730139049647,-500.0,0.00026849,4]
[340940629,1730139049656,-500.0,0.00026849,4]
[340940630,1730139049666,-2057.11,0.00026849,4]
[340940631,1730139049675,-500.0,0.00026849,4]
[340940632,1730139049685,-775.41,0.00026849,4]
[340940633,1730139049696,-500.0,0.00026849,4]
[340940634,1730139049705,-593.13,0.00026849,4]
[340940635,1730139049715,-500.0,0.00026849,4]
[340940636,1730139049725,-500.0,0.00026849,4]
[340940637,1730139049735,-500.0,0.00026849,4]
[340940638,1730139049745,-500.0,0.00026849,4]
[340940639,1730139049755,-1315.31,0.00026849,4]
[340940640,1730139049766,-2567.05,0.00026849,4]
[340940641,1730139049776,-500.0,0.00026849,4]
[340940642,1730139049786,-659.9,0.00026849,4]
[340940643,1730139049795,-362.40500026,0.00026849,4]
[340940644,1730139049805,-500.0,0.00026849,4]
[340940645,1730139049815,-500.0,0.00026849,4]
[340940646,1730139049825,-500.0,0.00026849,4]
[340940647,1730139049835,-565.15,0.00026849,4]
[340940648,1730139049844,-500.0,0.00026849,4]
[340940649,1730139049854,-1198.89,0.00026849,4]
[340940650,1730139049864,-722.28,0.00026849,4]
[340940651,1730139049874,-500.0,0.00026849,4]
[340940652,1730139049883,-500.0,0.00026849,4]
[340940653,1730139049893,-503.48,0.00026849,4]
[340940654,1730139049903,-1121.74,0.00026849,4]
[340940655,1730139049913,-500.0,0.00026849,4]
[340940656,1730139049923,-193.58253074,0.00026849,4]
[340940657,1730139049933,-500.0,0.00026849,4]
[340940658,1730139049945,-577.04,0.00026849,4]
[340940659,1730139049955,-739.03,0.00026849,4]
[340940660,1730139049964,-500.0,0.00026849,4]
[340940661,1730139049974,-500.0,0.00026849,4]
[340940662,1730139049984,-500.0,0.00026849,4]
[340940663,1730139049994,-559.42,0.00026849,4]
[340940664,1730139050004,-645.36,0.00026849,4]
[340940665,1730139050013,-500.0,0.00026849,4]
[340940666,1730139050023,-500.0,0.00026849,4]
[340940667,1730139050032,-500.0,0.00026849,4]
[340940668,1730139050042,-500.0,0.00026849,4]
[340940669,1730139050051,-151.0,0.00026849,7]
[340940670,1730139050061,-1810.21,0.000269,2]
[340940671,1730139050070,-150.112233,0.00027,17]
[340940672,1730139050080,-5473.81450223,0.00027018,2]
[340940673,1730139050089,-420.0,0.00027099,2]
[340940674,1730139050099,-151.0,0.00027122,7]
[340940675,1730139050109,-151.0,0.00027122,7]
[340940676,1730139050119,-151.0,0.00027122,7]
[340940677,1730139050129,-151.0,0.00027122,7]
[340940678,1730139050141,-174.414342,0.00027122,7]
[340940679,1730139050152,-506.21,0.00027122,2]
[340940680,1730139050162,-506.21,0.00027122,2]
[340940681,1730139050282,-506.21,0.00027122,2]
[340940682,1730139050292,-506.21,0.00027122,2]
[340940683,1730139050301,-506.21,0.00027122,2]
[340940684,1730139050310,-506.21,0.00027122,2]
[340940685,1730139050320,-506.21,0.00027122,2]
[340940686,1730139050329,-506.21,0.00027122,2]
[340940687,1730139050339,-506.21,0.00027122,2]
[340940688,1730139050348,-506.21,0.00027122,2]
[340940689,1730139050357,-500.0,0.00027123,4]
[340940690,1730139050367,-151.0,0.00027123,7]
[340940691,1730139050376,-151.0,0.00027123,7]
[340940692,1730139050385,-500.0,0.00027123,4]
[340940693,1730139050394,-500.0,0.00027123,2]
[340940694,1730139050404,-500.0,0.00027123,4]
[340940695,1730139050413,-512.82,0.00027123,4]
[340940696,1730139050422,-500.0,0.00027123,4]
[340940697,1730139050431,-500.0,0.00027123,4]
[340940698,1730139050440,-500.0,0.00027123,4]
[340940699,1730139050449,-158.77191366,0.00027123,4]
[340940700,1730139050459,-500.0,0.00027123,4]
[340940701,1730139050469,-500.0,0.00027123,4]
[340940702,1730139050483,-151.0,0.00027123,7]
[340940703,1730139050492,-500.0,0.00027123,4]
[340940704,1730139050502,-500.0,0.00027123,4]
[340940705,1730139050511,-500.0,0.00027123,4]
[340940706,1730139050522,-500.0,0.00027123,4]
[340940707,1730139050532,-500.0,0.00027123,4]
[340940708,1730139050542,-500.0,0.00027123,4]
[340940709,1730139050552,-500.0,0.00027123,4]
[340940710,1730139050562,-500.0,0.00027123,4]
[340940711,1730139050571,-151.0,0.00027123,7]
[340940712,1730139050580,-500.0,0.00027123,4]
[340940713,1730139050590,-500.0,0.00027123,4]
[340940714,1730139050599,-500.0,0.00027123,4]
[340940715,1730139050608,-781.82,0.00027123,4]
[340940716,1730139050617,-252.41908798,0.00027123,4]
[340940717,1730139050628,-500.0,0.00027123,4]
[340940718,1730139050637,-500.0,0.00027123,4]
[340940719,1730139050647,-500.0,0.00027123,4]
[340940720,1730139050656,-500.0,0.00027123,4]
[340940721,1730139050666,-500.0,0.00027123,4]
[340940722,1730139050675,-500.0,0.00027123,4]
[340940723,1730139050684,-500.0,0.00027123,4]
[340940724,1730139050696,-500.0,0.00027123,4]
[340940725,1730139050708,-500.0,0.00027123,4]
[340940726,1730139050717,-2057.11,0.00027123,4]
[340940727,1730139050727,-500.0,0.00027123,4]
[340940728,1730139050736,-775.41,0.00027123,4]
[340940729,1730139050745,-500.0,0.00027123,4]
[340940730,1730139050755,-593.13,0.00027123,4]
[340940731,1730139050764,-500.0,0.00027123,4]
[340940732,1730139050773,-500.0,0.00027123,4]
[340940733,1730139050783,-500.0,0.00027123,4]
[340940734,1730139050792,-500.0,0.00027123,4]
[340940735,1730139050801,-1315.31,0.00027123,4]
[340940736,1730139050811,-2567.05,0.00027123,4]
[340940737,1730139050821,-500.0,0.00027123,4]
[340940738,1730139050830,-659.9,0.00027123,4]
[340940739,1730139050841,-500.0,0.00027123,4]
[340940740,1730139050851,-500.0,0.00027123,4]
[340940741,1730139050861,-500.0,0.00027123,4]
[340940742,1730139050870,-565.15,0.00027123,4]
[340940743,1730139050880,-559.09846336,0.00027123,4]
[340940744,1730139050889,-1198.89,0.00027123,4]
[340940745,1730139050899,-722.28,0.00027123,4]
[340940746,1730139050908,-500.0,0.00027123,4]
[340940747,1730139050918,-500.0,0.00027123,4]
[340940748,1730139050927,-503.48,0.00027123,4]
[340940749,1730139050937,-1121.74,0.00027123,4]
[340940750,1730139050949,-500.0,0.00027123,4]
[340940751,1730139050959,-500.0,0.00027123,4]
[340940752,1730139050968,-577.04,0.00027123,4]
[340940753,1730139050977,-739.03,0.00027123,4]
[340940754,1730139050987,-500.0,0.00027123,4]
[340940755,1730139050997,-500.0,0.00027123,4]
[340940756,1730139051006,-500.0,0.00027123,4]
[340940757,1730139051016,-559.42,0.00027123,4]
[340940758,1730139051026,-645.36,0.00027123,4]
[340940759,1730139051035,-500.0,0.00027123,4]
[340940760,1730139051045,-500.0,0.00027123,4]
[340940761,1730139051054,-500.0,0.00027123,4]
[340940762,1730139051063,-500.0,0.00027123,4]
[340940763,1730139051072,-1000.0,0.00027142,2]
[340940764,1730139051081,-1000.0,0.00027142,2]
[340940765,1730139051091,-1000.0,0.00027142,2]
[340940766,1730139051099,-1000.0,0.00027142,2]
[340940767,1730139051109,-989.61518602,0.00027142,2]
[340940768,1730139051117,-1000.0,0.00027142,2]
[340940769,1730139051127,-150.112233,0.000273,13]
[340940770,1730139051136,-5473.81450223,0.00027334,2]
[340940771,1730139051146,-151.0,0.00027387,7]
[340940772,1730139051154,-151.02658127,0.00027394,2]
[340940773,1730139051163,-500.0,0.00027397,4]
[340940774,1730139051172,-500.0,0.00027397,4]
[340940775,1730139051181,-500.0,0.00027397,2]
[340940776,1730139051192,-151.0,0.00027397,7]
[340940777,1730139051201,-500.0,0.00027397,4]
[340940778,1730139051210,-512.82,0.00027397,4]
[340940779,1730139051219,-500.0,0.00027397,4]
[340940780,1730139051227,-500.0,0.00027397,4]
[340940781,1730139051237,-500.0,0.00027397,4]
[340940782,1730139051246,-500.0,0.00027397,4]
[340940783,1730139051254,-500.0,0.00027397,4]
[340940784,1730139051263,-500.0,0.00027397,4]
[340940785,1730139051272,-500.0,0.00027397,4]
[340940786,1730139051281,-500.0,0.00027397,4]
[340940787,1730139051290,-500.0,0.00027397,4]
[340940788,1730139051299,-500.0,0.00027397,4]
[340940789,1730139051308,-500.0,0.00027397,4]
[340940790,1730139051317,-213.17731312,0.00027397,4]
[340940791,1730139051326,-500.0,0.00027397,4]
[340940792,1730139051336,-500.0,0.00027397,4]
[340940793,1730139051345,-500.0,0.00027397,4]
[340940794,1730139051354,-500.0,0.00027397,4]
[340940795,1730139051363,-781.82,0.00027397,4]
[340940796,1730139051372,-500.0,0.00027397,4]
[340940797,1730139051382,-500.0,0.00027397,4]
[340940798,1730139051391,-500.0,0.00027397,4]
[340940799,1730139051400,-500.0,0.00027397,4]
[340940800,1730139051410,-169.964206,0.00027397,7]
[340940801,1730139051419,-169.964206,0.00027397,7]
[340940802,1730139051428,-500.0,0.00027397,4]
[340940803,1730139051437,-151.0,0.00027397,7]
[340940804,1730139051448,-500.0,0.00027397,4]
[340940805,1730139051457,-500.0,0.00027397,4]
[340940806,1730139051466,-500.0,0.00027397,4]
[340940807,1730139051476,-151.0,0.00027397,7]
[340940808,1730139051487,-324.320368,0.00027397,7]
[340940809,1730139051497,-324.320368,0.00027397,7]
[340940810,1730139051506,-297.79722517,0.00027397,4]
[340940811,1730139051515,-2057.11,0.00027397,4]
[340940812,1730139051524,-240.972681,0.00027397,7]
[340940813,1730139051534,-500.0,0.00027397,4]
[340940814,1730139051543,-240.972681,0.00027397,7]
[340940815,1730139051552,-775.41,0.00027397,4]
[340940816,1730139051564,-256.581499,0.00027397,7]
[340940817,1730139051573,-500.0,0.00027397,4]
[340940818,1730139051582,-593.13,0.00027397,4]
[340940819,1730139051591,-256.581499,0.00027397,7]
[340940820,1730139051601,-500.0,0.00027397,4]
[340940821,1730139051610,-500.0,0.00027397,4]
[340940822,1730139051619,-151.0,0.00027397,7]
[340940823,1730139051628,-352.57058094,0.00027397,4]
[340940824,1730139051637,-500.0,0.00027397,4]
[340940825,1730139051646,-151.0,0.00027397,7]
[340940826,1730139051656,-1315.31,0.00027397,4]
[340940827,1730139051665,-151.0,0.00027397,7]
[340940828,1730139051675,-2567.05,0.00027397,4]
[340940829,1730139051686,-500.0,0.00027397,4]
[340940830,1730139051697,-151.0,0.00027397,7]
[340940831,1730139051707,-659.9,0.00027397,4]
[340940832,1730139051716,-500.0,0.00027397,4]
[340940833,1730139051726,-500.0,0.00027397,4]
[340940834,1730139051736,-500.0,0.00027397,4]
[340940835,1730139051745,-565.15,0.00027397,4]
[340940836,1730139051755,-1198.89,0.00027397,4]
[340940837,1730139051765,-722.28,0.00027397,4]
[340940838,1730139051774,-421.843324,0.00027397,7]
[340940839,1730139051783,-558.162013,0.00027397,7]
[340940840,1730139051792,-421.843324,0.00027397,7]
[340940841,1730139051801,-558.162013,0.00027397,7]
[340940842,1730139051811,-192.323239,0.00027397,7]
[340940843,1730139051821,-192.323239,0.00027397,7]
[340940844,1730139051831,-500.0,0.00027397,4]
[340940845,1730139051840,-500.0,0.00027397,4]
[340940846,1730139051849,-503.48,0.00027397,4]
[340940847,1730139051860,-1121.74,0.00027397,4]
[340940848,1730139051870,-508.88706472,0.00027397,4]
[340940849,1730139051879,-500.0,0.00027397,4]
[340940850,1730139051889,-336.705858,0.00027397,7]
[340940851,1730139051898,-151.0,0.00027397,7]
[340940852,1730139051908,-577.04,0.00027397,4]
[340940853,1730139051917,-336.705858,0.00027397,7]
[340940854,1730139051926,-151.0,0.00027397,7]
[340940855,1730139051935,-739.03,0.00027397,4]
[340940856,1730139051947,-500.0,0.00027397,4]
[340940857,1730139051956,-500.0,0.00027397,4]
[340940858,1730139051965,-500.0,0.00027397,4]
[340940859,1730139051974,-559.42,0.00027397,4]
[340940860,1730139051983,-151.0,0.00027397,7]
[340940861,1730139051993,-645.36,0.00027397,4]
[340940862,1730139052002,-686.387011,0.00027397,7]
[340940863,1730139052011,-500.0,0.00027397,4]
[340940864,1730139052020,-686.387011,0.00027397,7]
[340940865,1730139052029,-487.60065424,0.00027397,4]
[340940866,1730139052039,-500.0,0.00027397,4]
[340940867,1730139052048,-500.0,0.00027397,4]
[340940868,1730139052057,-243.33709814,0.00027397,2]
[340940869,1730139052067,-500.0,0.00027397,2]
[340940870,1730139052076,-704.29,0.000274,14]
[340940871,1730139052085,-465.00133657,0.00027462,2]
[340940872,1730139052096,-429.29491608,0.00027499,2]
[340940873,1730139052106,-2521.24483632,0.000275,2]
[340940874,1730139052114,-500.0,0.000275,2]
[340940875,1730139052124,-500.0,0.000275,2]
[340940876,1730139052133,-500.0,0.000275,2]
[340940877,1730139052143,-500.0,0.000275,2]
[340940878,1730139052152,-500.0,0.000275,2]
[340940879,1730139052161,-500.0,0.000275,2]
[340940880,1730139052171,-500.0,0.000275,2]
[340940881,1730139052180,-500.0,0.000275,2]
[340940882,1730139052191,-500.0,0.000275,2]
[340940883,1730139052200,-347.68761855,0.000275,2]
[340940884,1730139052210,-150.112233,0.000276,19]
[340940885,1730139052219,-160.0,0.00027635,3]
[340940886,1730139052229,-160.0,0.00027657,10]
[340940887,1730139052239,-48541.18666981,0.00027658,2]
[340940888,1730139052314,-500.0,0.00024657,4]
[340940889,1730139052323,-500.0,0.00025773,2]
[340940890,1730139052333,-1000.0,0.00027142,2]
[340940891,1730139052342,-2172.75907927,0.00027658,2]
[340940892,1730139444434,166.572501,0.00013973,2]
[340940896,1730139938147,-273.80672986,0.00022722,2]
[340940897,1730139951610,188.756557,0.00013973,2]
[340940898,1730140028108,-338.9558075,0.0002244,2]
[340940899,1730140028131,-440.76163683,0.00022443,2]
[340940900,1730140031093,-320.44064163,0.00022443,2]
[340940903,1730140120129,4849.69727374,0.00035798,30]
[340940905,1730140145138,-300.0,0.00020376,2]
[340940906,1730140145163,-300.0,0.00020376,2]
[340940907,1730140145187,-47283.81751933,0.00020377,2]
[340940908,1730140145211,-10000.0,0.00021,5]
[340940909,1730140145236,-18270.80002247,0.00022,30]
[340940910,1730140147313,-15931.65711733,0.00022,30]
[340940911,1730140147337,-269.61579251,0.00022179,2]
[340940912,1730140148129,-150.38420749,0.00022179,2]
[340940913,1730140148152,-677.91161498,0.00022342,2]
[340940914,1730140148176,-420.0,0.00022414,2]
[340940915,1730140148199,-4252.88608054,0.00022443,2]
[340940916,1730140148222,-500.661112,0.0002254,2]
[340940917,1730140148245,-4321.54970284,0.00022722,2]
[340940918,1730140148269,-12688.773124,0.00022766,2]
[340940919,1730140148293,-217.815116,0.00022895,2]
[340940920,1730140148505,-4686.95255145,0.00023127,2]
[340940921,1730140156135,-327.13580755,0.00023127,2]
[340940922,1730140168160,-195.53,0.00023498,2]
[340940923,1730140168184,-5014.088359,0.00023812,2]
[340940948,1730140232243,-194.11356686,0.00024012,2]
[340940949,1730140232253,-217.815116,0.00024088,2]
[340940950,1730140232262,-88.10131714,0.0002422,2]
[340940951,1730140232274,-288.97268286,0.0002422,2]
[340940952,1730140232284,-7439.98683288,0.00024547,2]
[340940953,1730140232293,-280.0,0.00024645,2]
[340940954,1730140232302,-300.0,0.00024645,2]
[340940955,1730140232312,-534.15872936,0.00024647,2]
[340940956,1730140232321,-5303.88243239,0.00024647,3]
[340940957,1730140232332,-8453.05662512,0.00024647,3]
[340940963,1730140238195,-25796.13310709,0.00024647,3]
[340940964,1730140238205,-30505.8161835,0.00024647,3]
[340940965,1730140238215,-500.0,0.00024656,2]
[340940966,1730140238226,-500.0,0.00024656,2]
[340940967,1730140238236,-237.18659623,0.00024656,2]
[340940968,1730140238246,-500.0,0.00024656,2]
[340940969,1730140238255,-244.02791439,0.00024656,2]
[340940970,1730140238264,-500.0,0.00024656,2]
[340940971,1730140238274,-500.0,0.00024656,2]
[340940972,1730140238285,-186.46691638,0.00024656,2]
[340940973,1730140238294,-222.43726996,0.00024656,2]
[340940974,1730140238304,-500.0,0.00024656,2]
[340940975,1730140238313,-500.0,0.00024656,2]
[340940976,1730140238323,-274.44535428,0.00024656,2]
[340940977,1730140238332,-500.0,0.00024657,4]
[340940978,1730140238342,-500.0,0.00024657,4]
[340940979,1730140238351,-500.0,0.00024657,4]
[340940980,1730140238360,-500.0,0.00024657,4]
[340940981,1730140238370,-500.0,0.00024657,4]
[340940982,1730140238379,-500.0,0.00024657,4]
[340940983,1730140238388,-500.0,0.00024657,4]
[340940984,1730140238398,-637.47112659,0.00024657,4]
[340940985,1730140238408,-500.0,0.00024657,4]
[340940986,1730140238417,-500.0,0.00024657,4]
[340940987,1730140238427,-500.0,0.00024657,4]
[340940988,1730140238436,-500.0,0.00024657,4]
[340940989,1730140238446,-500.0,0.00024657,4]
[340940990,1730140238455,-500.0,0.00024657,4]
[340940991,1730140238464,-500.0,0.00024657,4]
[340940992,1730140238476,-500.0,0.00024657,4]
[340940993,1730140238485,-500.0,0.00024657,4]
[340940994,1730140238495,-500.0,0.00024657,4]
[340940995,1730140238504,-500.0,0.00024657,4]
[340940996,1730140238515,-347.71172369,0.00024657,4]
[340940997,1730140238526,-500.0,0.00024657,4]
[340940998,1730140238535,-500.0,0.00024657,4]
[340940999,1730140238545,-500.0,0.00024657,4]
[340941000,1730140238555,-500.0,0.00024657,4]
[340941001,1730140238564,-582.04581987,0.00024657,4]
[340941002,1730140238728,-500.0,0.00024657,4]
[340941003,1730140238739,-500.0,0.00024657,4]
[340941004,1730140238748,-500.0,0.00024657,4]
[340941005,1730140238758,-500.0,0.00024657,4]
[340941006,1730140238767,-500.0,0.00024657,4]
[340941007,1730140238776,-500.0,0.00024657,4]
[340941008,1730140238785,-500.0,0.00024657,4]
[340941009,1730140238795,-596.82354834,0.00024657,4]
[340941010,1730140238804,-500.0,0.00024657,4]
[340941011,1730140238813,-500.0,0.00024657,4]
[340941012,1730140238823,-500.0,0.00024657,4]
[340941013,1730140238832,-500.0,0.00024657,4]
[340941014,1730140238841,-500.0,0.00024657,4]
[340941015,1730140238851,-500.0,0.00024657,4]
[340941016,1730140238860,-500.0,0.00024657,4]
[340941017,1730140238869,-500.0,0.00024657,4]
[340941018,1730140238879,-500.0,0.00024657,4]
[340941019,1730140238888,-521.21,0.00024657,4]
[340941020,1730140238898,-500.0,0.00024657,4]
[340941021,1730140238912,-500.0,0.00024657,4]
[340941022,1730140238922,-500.0,0.00024657,4]
[340941023,1730140238932,-500.0,0.00024657,4]
[340941024,1730140238941,-263.28719848,0.00024657,4]
[340941025,1730140238951,-500.0,0.00024657,4]
[340941026,1730140238961,-500.0,0.00024657,4]
[340941027,1730140238970,-500.0,0.00024657,4]
[340941028,1730140238985,-500.0,0.00024657,4]
[340941029,1730140238995,-500.0,0.00024657,4]
[340941030,1730140239005,-500.0,0.00024657,4]
[340941031,1730140239014,-500.0,0.00024657,4]
[340941032,1730140239023,-500.0,0.00024657,4]
[340941033,1730140239033,-500.0,0.00024657,4]
[340941034,1730140239042,-500.0,0.00024657,4]
[340941035,1730140239052,-500.0,0.00024657,4]
[340941036,1730140239061,-500.0,0.00024657,4]
[340941037,1730140239071,-500.0,0.00024657,4]
[340941038,1730140239080,-500.0,0.00024657,4]
[340941039,1730140239089,-500.0,0.00024657,4]
[340941040,1730140239100,-500.0,0.00024657,4]
[340941041,1730140239110,-500.0,0.00024657,4]
[340941042,1730140239119,-500.0,0.00024657,4]
[340941043,1730140239129,-500.0,0.00024657,4]
[340941044,1730140239139,-500.0,0.00024657,4]
[340941045,1730140239148,-500.0,0.00024657,4]
[340941046,1730140239158,-500.0,0.00024657,4]
[340941047,1730140239167,-500.0,0.00024657,4]
[340941048,1730140239176,-500.0,0.00024657,4]
[340941049,1730140239185,-231.47478788,0.00024657,4]
[340941050,1730140239195,-500.0,0.00024657,4]
[340941051,1730140239204,-500.0,0.00024657,4]
[340941052,1730140239213,-500.0,0.00024657,4]
[340941053,1730140239223,-500.0,0.00024657,4]
[340941054,1730140239234,-931.68,0.00024657,4]
[340941055,1730140239243,-1457.12,0.00024657,4]
[340941056,1730140239253,-1818.33,0.00024657,4]
[340941057,1730140239262,-500.0,0.00024657,4]
[340941058,1730140239271,-500.0,0.00024657,4]
[340941059,1730140239280,-500.0,0.00024657,4]
[340941060,1730140239289,-549.25,0.00024657,4]
[340941061,1730140239298,-500.0,0.00024657,4]
[340941062,1730140239307,-500.0,0.00024657,4]
[340941063,1730140239317,-500.0,0.00024657,4]
[340941064,1730140239326,-500.0,0.00024657,4]
[340941065,1730140239335,-500.0,0.00024657,4]
[340941066,1730140239346,-500.0,0.00024657,4]
[340941067,1730140239355,-500.0,0.00024657,4]
[340941068,1730140239365,-500.0,0.00024657,4]
[340941069,1730140239374,-500.0,0.00024657,4]
[340941070,1730140239383,-500.0,0.00024657,4]
[340941071,1730140239393,-500.0,0.00024657,4]
[340941072,1730140239402,-500.0,0.00024657,4]
[340941073,1730140239412,-500.0,0.00024657,4]
[340941074,1730140239421,-500.0,0.00024657,4]
[340941075,1730140239432,-500.0,0.00024657,4]
[340941076,1730140239442,-500.0,0.00024657,4]
[340941077,1730140239451,-500.0,0.00024657,4]
[340941078,1730140239460,-500.0,0.00024657,4]
[340941079,1730140239469,-500.0,0.00024657,4]
[340941080,1730140239481,-849.21,0.00024657,4]
[340941081,1730140239490,-500.0,0.00024657,4]
[340941082,1730140239499,-511.62,0.00024657,4]
[340941083,1730140239509,-500.0,0.00024657,4]
[340941084,1730140239518,-500.0,0.00024657,4]
[340941085,1730140239529,-500.0,0.00024657,4]
[340941086,1730140239538,-500.0,0.00024657,4]
[340941088,1730140239548,-500.0,0.00024657,4]
[340941089,1730140239558,-500.0,0.00024657,4]
[340941090,1730140239567,-500.0,0.00024657,4]
[340941091,1730140239577,-500.0,0.00024657,4]
[340941092,1730140239587,-500.0,0.00024657,4]
[340941093,1730140239596,-500.0,0.00024657,4]
[340941094,1730140239605,-500.0,0.00024657,4]
[340941095,1730140239617,-500.0,0.00024657,4]
[340941096,1730140239626,-794.57,0.00024657,4]
[340941097,1730140239635,-500.0,0.00024657,4]
[340941098,1730140239645,-500.0,0.00024657,4]
[340941100,1730140239655,-500.0,0.00024657,4]
[340941101,1730140239664,-500.0,0.00024657,2]
[340941102,1730140239674,-500.0,0.00024657,4]
[340941103,1730140239683,-500.0,0.00024657,4]
[340941104,1730140239693,-500.0,0.00024657,4]
[340941105,1730140239702,-500.0,0.00024657,4]
[340941106,1730140239711,-500.0,0.00024657,4]
[340941107,1730140239720,-500.0,0.00024657,4]
[340941108,1730140239732,-500.0,0.00024657,4]
[340941109,1730140239741,-500.0,0.00024657,4]
[340941110,1730140239752,-500.0,0.00024657,4]
[340941111,1730140239761,-500.0,0.00024657,4]
[340941112,1730140239771,-500.0,0.00024657,4]
[340941113,1730140239781,-500.0,0.00024657,4]
[340941114,1730140239790,-500.0,0.00024657,4]
[340941115,1730140239800,-500.0,0.00024657,4]
[340941116,1730140239809,-500.0,0.00024657,4]
[340941117,1730140239819,-500.0,0.00024657,4]
[340941118,1730140239829,-500.0,0.00024657,4]
[340941120,1730140239839,-500.0,0.00024657,4]
[340941122,1730140239848,-500.0,0.00024657,4]